[Event "*** Titled Tuesday Blitz"]
[Site "Chess.com"]
[Date "2021.03.02"]
[Round "5"]
[White "Andrakhanova"]
[Black "Azde"]
[Result "1-0"]
[WhiteElo "2267"]
[BlackElo "2427"]
[TimeControl "180+1"]
[EndTime "10:54:18 PST"]
[Termination "Andrakhanova won by resignation"]

1. c4 {[%clk 0:03:00.9]} 1... Nf6 {[%clk 0:02:58.9]} 2. g3 {[%clk 0:03:00.3]}
2... e6 {[%clk 0:02:59]} 3. Nc3 {[%clk 0:02:58.3]} 3... c5 {[%clk 0:02:59.1]} 4.
Bg2 {[%clk 0:02:58.2]} 4... Nc6 {[%clk 0:02:59.4]} 5. e3 {[%clk 0:02:58.5]} 5...
Be7 {[%clk 0:02:59.4]} 6. Nge2 {[%clk 0:02:59]} 6... O-O {[%clk 0:02:59]} 7. d4
{[%clk 0:02:59.1]} 7... cxd4 {[%clk 0:02:59]} 8. Nxd4 {[%clk 0:03:00]} 8... a6
{[%clk 0:02:57.9]} 9. O-O {[%clk 0:02:59.2]} 9... Qc7 {[%clk 0:02:56]} 10. b3
{[%clk 0:02:57.9]} 10... d6 {[%clk 0:02:56]} 11. Bb2 {[%clk 0:02:57]} 11... Bd7
{[%clk 0:02:55.9]} 12. Rc1 {[%clk 0:02:56.8]} 12... Ne5 {[%clk 0:02:51.2]} 13.
h3 {[%clk 0:02:55.2]} 13... Rfd8 {[%clk 0:02:41.9]} 14. Kh2 {[%clk 0:02:50.6]}
14... Rac8 {[%clk 0:02:39.2]} 15. Qe2 {[%clk 0:02:49.8]} 15... Qb8 {[%clk
0:02:37.2]} 16. Rfd1 {[%clk 0:02:31.6]} 16... Be8 {[%clk 0:02:34.3]} 17. Rd2
{[%clk 0:02:30]} 17... h5 {[%clk 0:02:26.3]} 18. Rcd1 {[%clk 0:02:29.1]} 18...
h4 {[%clk 0:02:26.1]} 19. g4 {[%clk 0:02:26.4]} 19... d5 {[%clk 0:02:25.2]} 20.
f4 {[%clk 0:02:25]} 20... Ng6 {[%clk 0:01:59.6]} 21. cxd5 {[%clk 0:02:19.3]}
21... exd5 {[%clk 0:01:50.3]} 22. Qf2 {[%clk 0:02:12]} 22... Bb4 {[%clk
0:01:41.8]} 23. Rd3 {[%clk 0:02:07.5]} 23... Bxc3 {[%clk 0:01:28.8]} 24. Rxc3
{[%clk 0:02:08.4]} 24... Rxc3 {[%clk 0:01:26.1]} 25. Bxc3 {[%clk 0:02:09.3]}
25... Ne4 {[%clk 0:01:26.5]} 26. Bxe4 {[%clk 0:02:08.5]} 26... dxe4 {[%clk
0:01:27.4]} 27. Rc1 {[%clk 0:02:01.9]} 27... Qd6 {[%clk 0:01:24.2]} 28. Nf5
{[%clk 0:02:00.4]} 28... Qa3 {[%clk 0:01:23.4]} 29. Rc2 {[%clk 0:01:56.8]} 29...
f6 {[%clk 0:01:19.6]} 30. Nxh4 {[%clk 0:01:54.2]} 30... Nxh4 {[%clk 0:01:06.5]}
31. Qxh4 {[%clk 0:01:55.1]} 31... Rd3 {[%clk 0:00:54.3]} 32. Bd4 {[%clk
0:01:51.6]} 32... Bc6 {[%clk 0:00:53.9]} 33. g5 {[%clk 0:01:47.3]} 33... Rxd4
{[%clk 0:00:17.5]} 34. exd4 {[%clk 0:01:34.6]} 34... e3 {[%clk 0:00:16.7]} 35.
g6 {[%clk 0:01:32.4]} 35... Qd6 {[%clk 0:00:11.9]} 36. Qh7+ {[%clk 0:01:31.1]}
36... Kf8 {[%clk 0:00:12.6]} 37. Qh8+ {[%clk 0:01:31.9]} 37... Ke7 {[%clk
0:00:13.3]} 38. Qxg7+ {[%clk 0:01:32.6]} 38... Kd8 {[%clk 0:00:13.5]} 39. Kg3
{[%clk 0:01:23.8]} 39... Kc8 {[%clk 0:00:11.1]} 40. Qf7 {[%clk 0:01:18.7]} 40...
Qd5 {[%clk 0:00:09.6]} 41. Qxd5 {[%clk 0:01:18.1]} 1-0

[Event "*** Titled Tuesday Blitz"]
[Site "Chess.com"]
[Date "2021.03.02"]
[Round "5"]
[White "maxip32"]
[Black "horripile"]
[Result "0-1"]
[WhiteElo "2528"]
[BlackElo "2697"]
[TimeControl "180+1"]
[EndTime "10:54:20 PST"]
[Termination "horripile won on time"]

1. e4 {[%clk 0:02:58.3]} 1... c5 {[%clk 0:02:59.1]} 2. Nf3 {[%clk 0:02:55.2]}
2... Nc6 {[%clk 0:02:57.7]} 3. d4 {[%clk 0:02:53.1]} 3... cxd4 {[%clk
0:02:58.6]} 4. Nxd4 {[%clk 0:02:52.3]} 4... e6 {[%clk 0:02:58.5]} 5. Nc3 {[%clk
0:02:50.4]} 5... Qc7 {[%clk 0:02:57.9]} 6. Be3 {[%clk 0:02:49.5]} 6... a6 {[%clk
0:02:54.6]} 7. Qf3 {[%clk 0:02:48.5]} 7... Bd6 {[%clk 0:02:52.6]} 8. O-O-O
{[%clk 0:02:46.2]} 8... Be5 {[%clk 0:02:52.1]} 9. g3 {[%clk 0:02:36.7]} 9... Nf6
{[%clk 0:02:47.8]} 10. Qe2 {[%clk 0:02:35.5]} 10... O-O {[%clk 0:02:33.4]} 11.
f4 {[%clk 0:02:32.7]} 11... Bxd4 {[%clk 0:02:33]} 12. Bxd4 {[%clk 0:02:32.6]}
12... Nxd4 {[%clk 0:02:26]} 13. Rxd4 {[%clk 0:02:32.2]} 13... e5 {[%clk
0:02:22.4]} 14. Rc4 {[%clk 0:01:55.9]} 14... Qb8 {[%clk 0:02:20]} 15. f5 {[%clk
0:01:48.2]} 15... b5 {[%clk 0:02:17.7]} 16. Rb4 {[%clk 0:01:47]} 16... Bb7
{[%clk 0:02:12.4]} 17. Bg2 {[%clk 0:01:46.9]} 17... Bc6 {[%clk 0:02:06.2]} 18.
Nd5 {[%clk 0:01:30.8]} 18... Bxd5 {[%clk 0:01:50.1]} 19. exd5 {[%clk 0:01:31.7]}
19... Qd6 {[%clk 0:01:50.3]} 20. Rh4 {[%clk 0:01:25.7]} 20... Rac8 {[%clk
0:01:49.5]} 21. g4 {[%clk 0:01:22.9]} 21... Rc4 {[%clk 0:01:49.3]} 22. Rd1
{[%clk 0:01:12.4]} 22... Rfc8 {[%clk 0:01:48.4]} 23. Rd2 {[%clk 0:01:10]} 23...
h6 {[%clk 0:01:45.2]} 24. Qf3 {[%clk 0:00:49]} 24... Rf4 {[%clk 0:01:25.7]} 25.
Qg3 {[%clk 0:00:41.3]} 25... Qc5 {[%clk 0:01:25.8]} 26. Qe1 {[%clk 0:00:28.8]}
26... d6 {[%clk 0:01:15.8]} 27. Rh3 {[%clk 0:00:15.2]} 27... Rxg4 {[%clk
0:01:15]} 28. Rc3 {[%clk 0:00:14.9]} 28... Rc4 {[%clk 0:01:12.4]} 29. Rxc4
{[%clk 0:00:08.4]} 29... Qxc4 {[%clk 0:01:12.5]} 30. Kb1 {[%clk 0:00:09.3]}
30... Qf4 {[%clk 0:01:11.2]} 31. Rf2 {[%clk 0:00:07.5]} 31... Qxh2 {[%clk
0:01:10.2]} 32. a4 {[%clk 0:00:04.8]} 32... bxa4 {[%clk 0:01:09.2]} 33. Bf3
{[%clk 0:00:01.7]} 33... Qg3 {[%clk 0:01:08.7]} 0-1

[Event "*** Titled Tuesday Blitz"]
[Site "Chess.com"]
[Date "2021.03.02"]
[Round "5"]
[White "Chandradi"]
[Black "FontVella8"]
[Result "1-0"]
[WhiteElo "2355"]
[BlackElo "2489"]
[TimeControl "180+1"]
[EndTime "10:54:23 PST"]
[Termination "Chandradi won by checkmate"]

1. c4 {[%clk 0:02:25.4]} 1... e5 {[%clk 0:02:58.9]} 2. g3 {[%clk 0:02:25.4]}
2... Nc6 {[%clk 0:02:58.9]} 3. Bg2 {[%clk 0:02:25.6]} 3... d6 {[%clk 0:02:59.4]}
4. Nc3 {[%clk 0:02:24.4]} 4... Be6 {[%clk 0:02:59.7]} 5. d3 {[%clk 0:02:23.8]}
5... Qd7 {[%clk 0:02:59.4]} 6. h3 {[%clk 0:02:22.8]} 6... g6 {[%clk 0:02:56.4]}
7. Nf3 {[%clk 0:02:22.8]} 7... Bg7 {[%clk 0:02:56.1]} 8. Ng5 {[%clk 0:02:22.5]}
8... Nge7 {[%clk 0:02:50.2]} 9. O-O {[%clk 0:02:20.8]} 9... O-O {[%clk
0:02:48.6]} 10. Nxe6 {[%clk 0:02:15.1]} 10... fxe6 {[%clk 0:02:48.3]} 11. Rb1
{[%clk 0:02:11.7]} 11... d5 {[%clk 0:02:40]} 12. b4 {[%clk 0:02:03.6]} 12... a6
{[%clk 0:02:25.6]} 13. b5 {[%clk 0:02:02.4]} 13... Nd8 {[%clk 0:02:24.3]} 14.
Qb3 {[%clk 0:01:54.1]} 14... d4 {[%clk 0:02:07.2]} 15. Ne4 {[%clk 0:01:51]}
15... Nf5 {[%clk 0:01:22]} 16. a4 {[%clk 0:01:44.7]} 16... Nd6 {[%clk
0:01:14.8]} 17. Nc5 {[%clk 0:01:36.1]} 17... Qc8 {[%clk 0:01:14.6]} 18. b6
{[%clk 0:01:31.3]} 18... c6 {[%clk 0:01:09.1]} 19. Ba3 {[%clk 0:01:29.7]} 19...
N8f7 {[%clk 0:01:02.7]} 20. h4 {[%clk 0:01:23.3]} 20... Re8 {[%clk 0:01:01.3]}
21. Bh3 {[%clk 0:01:22.6]} 21... Bf8 {[%clk 0:00:59.6]} 22. a5 {[%clk
0:01:17.5]} 22... Nf5 {[%clk 0:00:59.1]} 23. Kg2 {[%clk 0:01:08.6]} 23... Bd6
{[%clk 0:00:53.3]} 24. Ne4 {[%clk 0:01:08.1]} 24... Bxa3 {[%clk 0:00:49.6]} 25.
Nf6+ {[%clk 0:01:07.6]} 25... Kh8 {[%clk 0:00:49.5]} 26. Nxe8 {[%clk 0:01:03.3]}
26... Be7 {[%clk 0:00:36.9]} 27. Nc7 {[%clk 0:01:02.2]} 27... Rb8 {[%clk
0:00:34.9]} 28. c5 {[%clk 0:01:02.6]} 28... Nd8 {[%clk 0:00:31.8]} 29. Rbc1
{[%clk 0:00:57.5]} 29... Kg7 {[%clk 0:00:29.8]} 30. h5 {[%clk 0:00:56.2]} 30...
g5 {[%clk 0:00:28.9]} 31. Bxf5 {[%clk 0:00:50.9]} 31... exf5 {[%clk 0:00:27.8]}
32. h6+ {[%clk 0:00:50.8]} 32... Kg6 {[%clk 0:00:26.6]} 33. Qg8+ {[%clk
0:00:49.2]} 33... Kf6 {[%clk 0:00:21.8]} 34. Qg7# {[%clk 0:00:46.1]} 1-0

[Event "*** Titled Tuesday Blitz"]
[Site "Chess.com"]
[Date "2021.03.02"]
[Round "5"]
[White "PushingpawnsNYC"]
[Black "Das_Virus_2020"]
[Result "1-0"]
[WhiteElo "2291"]
[BlackElo "2447"]
[TimeControl "180+1"]
[EndTime "10:54:27 PST"]
[Termination "PushingpawnsNYC won on time"]

1. e4 {[%clk 0:03:00.9]} 1... e6 {[%clk 0:02:59.9]} 2. d4 {[%clk 0:02:53]} 2...
d5 {[%clk 0:03:00.2]} 3. Bd3 {[%clk 0:02:52.2]} 3... Nf6 {[%clk 0:02:59.7]} 4.
e5 {[%clk 0:02:51.6]} 4... Nfd7 {[%clk 0:02:59.4]} 5. f4 {[%clk 0:02:52.2]} 5...
c5 {[%clk 0:02:57.8]} 6. c3 {[%clk 0:02:47.3]} 6... Nc6 {[%clk 0:02:56.1]} 7.
Nf3 {[%clk 0:02:42.5]} 7... cxd4 {[%clk 0:02:55.2]} 8. cxd4 {[%clk 0:02:42.2]}
8... Qb6 {[%clk 0:02:55.6]} 9. Bc2 {[%clk 0:02:42.1]} 9... Nb4 {[%clk
0:02:55.4]} 10. Nc3 {[%clk 0:02:41.8]} 10... Nxc2+ {[%clk 0:02:51.1]} 11. Qxc2
{[%clk 0:02:42]} 11... Be7 {[%clk 0:02:48.8]} 12. O-O {[%clk 0:02:39.6]} 12...
g6 {[%clk 0:02:16]} 13. Be3 {[%clk 0:02:36.2]} 13... h5 {[%clk 0:02:10.7]} 14.
a3 {[%clk 0:02:33.4]} 14... Kf8 {[%clk 0:02:02.7]} 15. Rac1 {[%clk 0:02:31.8]}
15... Kg7 {[%clk 0:02:01.4]} 16. Ng5 {[%clk 0:02:28.2]} 16... Qa6 {[%clk
0:01:52.1]} 17. Rf3 {[%clk 0:02:23.5]} 17... Nb6 {[%clk 0:01:37.8]} 18. Rg3
{[%clk 0:02:08]} 18... Bxg5 {[%clk 0:01:24.9]} 19. fxg5 {[%clk 0:02:02.8]} 19...
Nc4 {[%clk 0:01:24.4]} 20. Rf1 {[%clk 0:01:56.4]} 20... Bd7 {[%clk 0:01:18]} 21.
Rgf3 {[%clk 0:01:52.5]} 21... Rhf8 {[%clk 0:01:08.2]} 22. Qf2 {[%clk 0:01:49.5]}
22... Be8 {[%clk 0:01:04]} 23. Bc1 {[%clk 0:01:36.9]} 23... Rc8 {[%clk
0:00:32.3]} 24. Rf6 {[%clk 0:01:33.7]} 24... Qb6 {[%clk 0:00:20.5]} 25. Nxd5
{[%clk 0:01:24.9]} 25... Qd8 {[%clk 0:00:11.7]} 26. Nf4 {[%clk 0:01:20.1]} 26...
Bb5 {[%clk 0:00:04.9]} 27. g4 {[%clk 0:01:04.9]} 27... h4 {[%clk 0:00:04.1]} 28.
Qxh4 {[%clk 0:01:03.2]} 28... Rh8 {[%clk 0:00:03.7]} 29. Nh5+ {[%clk 0:01:02.9]}
29... gxh5 {[%clk 0:00:03]} 30. Rxf7+ {[%clk 0:01:01.4]} 30... Kg8 {[%clk
0:00:03.4]} 31. gxh5 {[%clk 0:00:59.6]} 31... Nxe5 {[%clk 0:00:01.5]} 32. Qe4
{[%clk 0:00:53.7]} 1-0

[Event "*** Titled Tuesday Blitz"]
[Site "Chess.com"]
[Date "2021.03.02"]
[Round "5"]
[White "KubaGepard"]
[Black "VladaSviridova"]
[Result "1-0"]
[WhiteElo "2394"]
[BlackElo "2224"]
[TimeControl "180+1"]
[EndTime "10:54:27 PST"]
[Termination "KubaGepard won by checkmate"]

1. d4 {[%clk 0:03:00.9]} 1... d5 {[%clk 0:02:59.9]} 2. Nf3 {[%clk 0:02:55.4]}
2... Nf6 {[%clk 0:02:59.4]} 3. Bf4 {[%clk 0:02:56.3]} 3... c5 {[%clk 0:02:59]}
4. e3 {[%clk 0:02:56]} 4... Nc6 {[%clk 0:02:59.2]} 5. Nbd2 {[%clk 0:02:56.1]}
5... e6 {[%clk 0:02:57.9]} 6. c3 {[%clk 0:02:56.3]} 6... Bd6 {[%clk 0:02:57.9]}
7. Bg3 {[%clk 0:02:55.3]} 7... O-O {[%clk 0:02:56.9]} 8. Bd3 {[%clk 0:02:48.6]}
8... b6 {[%clk 0:02:57.1]} 9. Ke2 {[%clk 0:02:47.4]} 9... cxd4 {[%clk
0:02:22.9]} 10. exd4 {[%clk 0:02:45.7]} 10... Bb7 {[%clk 0:01:58.6]} 11. Bb5
{[%clk 0:02:34]} 11... a6 {[%clk 0:01:51]} 12. Ba4 {[%clk 0:02:33]} 12... b5
{[%clk 0:01:48.4]} 13. Bc2 {[%clk 0:02:31.9]} 13... b4 {[%clk 0:01:34]} 14. Bh4
{[%clk 0:02:25.3]} 14... Be7 {[%clk 0:01:32]} 15. Re1 {[%clk 0:02:22.8]} 15...
bxc3 {[%clk 0:01:27.8]} 16. bxc3 {[%clk 0:02:23.7]} 16... Na5 {[%clk 0:01:26.5]}
17. Kf1 {[%clk 0:02:21.4]} 17... Rc8 {[%clk 0:01:26.3]} 18. Bxf6 {[%clk
0:02:11.9]} 18... Bxf6 {[%clk 0:01:26.2]} 19. Re3 {[%clk 0:02:10.9]} 19... g6
{[%clk 0:01:17.6]} 20. Nb3 {[%clk 0:01:59.5]} 20... Nc4 {[%clk 0:01:11.5]} 21.
Re1 {[%clk 0:01:54.7]} 21... Bc6 {[%clk 0:01:10.8]} 22. Nc5 {[%clk 0:01:51.1]}
22... Bb5 {[%clk 0:01:09.9]} 23. Kg1 {[%clk 0:01:45.5]} 23... Na3 {[%clk
0:01:07.5]} 24. Bd3 {[%clk 0:01:43.4]} 24... Qa5 {[%clk 0:01:02.1]} 25. Bxb5
{[%clk 0:01:36.2]} 25... Qxb5 {[%clk 0:01:01.7]} 26. Qd2 {[%clk 0:01:31.6]}
26... Be7 {[%clk 0:00:56.7]} 27. Qh6 {[%clk 0:01:25.9]} 27... Nc2 {[%clk
0:00:46.2]} 28. Rab1 {[%clk 0:01:13.6]} 28... Qc6 {[%clk 0:00:33.1]} 29. Ne5
{[%clk 0:01:10.4]} 29... Qa8 {[%clk 0:00:25.9]} 30. Re2 {[%clk 0:01:05.3]} 30...
Na3 {[%clk 0:00:23.8]} 31. Re3 {[%clk 0:01:00]} 31... Bxc5 {[%clk 0:00:09.7]}
32. Rh3 {[%clk 0:00:57]} 32... Rfd8 {[%clk 0:00:02.4]} 33. Qxh7+ {[%clk
0:00:57.9]} 33... Kf8 {[%clk 0:00:02.6]} 34. Qxf7# {[%clk 0:00:58.7]} 1-0

[Event "*** Titled Tuesday Blitz"]
[Site "Chess.com"]
[Date "2021.03.02"]
[Round "5"]
[White "Ural_bogatyr"]
[Black "Supernotar"]
[Result "0-1"]
[WhiteElo "2503"]
[BlackElo "2686"]
[TimeControl "180+1"]
[EndTime "10:54:29 PST"]
[Termination "Supernotar won by resignation"]

1. e4 {[%clk 0:03:00.9]} 1... c6 {[%clk 0:02:57.5]} 2. d4 {[%clk 0:03:00.2]}
2... d5 {[%clk 0:02:58.4]} 3. e5 {[%clk 0:02:59.5]} 3... Bf5 {[%clk 0:02:58]} 4.
Nc3 {[%clk 0:02:57]} 4... e6 {[%clk 0:02:55.2]} 5. g4 {[%clk 0:02:55.9]} 5...
Bg6 {[%clk 0:02:53.5]} 6. Nge2 {[%clk 0:02:56.4]} 6... c5 {[%clk 0:02:52.5]} 7.
h4 {[%clk 0:02:56.3]} 7... cxd4 {[%clk 0:02:44.4]} 8. Qxd4 {[%clk 0:02:51.9]}
8... Nc6 {[%clk 0:02:40]} 9. Qa4 {[%clk 0:02:51.3]} 9... h5 {[%clk 0:02:31.1]}
10. Nf4 {[%clk 0:02:50.5]} 10... Bh7 {[%clk 0:02:30.3]} 11. Nxh5 {[%clk
0:02:50.3]} 11... a6 {[%clk 0:02:22.9]} 12. Bg5 {[%clk 0:02:49.1]} 12... Qd7
{[%clk 0:02:13.5]} 13. f4 {[%clk 0:02:41.4]} 13... Nge7 {[%clk 0:02:03.1]} 14.
O-O-O {[%clk 0:02:36.8]} 14... O-O-O {[%clk 0:02:00]} 15. f5 {[%clk 0:02:25.4]}
15... Kb8 {[%clk 0:01:42.3]} 16. Bf4 {[%clk 0:02:01]} 16... Rc8 {[%clk
0:01:11.7]} 17. Ne4 {[%clk 0:01:51.3]} 17... Bxf5 {[%clk 0:01:09]} 18. gxf5
{[%clk 0:01:49.8]} 18... Rxh5 {[%clk 0:00:58.4]} 19. Nd6 {[%clk 0:01:49.6]}
19... Nxf5 {[%clk 0:00:55.7]} 20. Nxc8 {[%clk 0:01:47.1]} 20... Qxc8 {[%clk
0:00:56.6]} 21. Bd3 {[%clk 0:01:43]} 21... b5 {[%clk 0:00:53.8]} 22. Bxb5 {[%clk
0:01:34.1]} 22... axb5 {[%clk 0:00:54.7]} 23. Qxb5+ {[%clk 0:01:35]} 23... Kc7
{[%clk 0:00:49]} 24. Rxd5 {[%clk 0:01:23.5]} 24... exd5 {[%clk 0:00:46.4]} 25.
Qxd5 {[%clk 0:01:20.4]} 25... Qe6 {[%clk 0:00:44.1]} 26. Qf3 {[%clk 0:01:14.2]}
26... Rxh4 {[%clk 0:00:40.4]} 27. Rxh4 {[%clk 0:01:13.1]} 27... Nxh4 {[%clk
0:00:41.3]} 28. Qc3 {[%clk 0:01:07.3]} 28... Nf5 {[%clk 0:00:38.1]} 29. a3
{[%clk 0:01:05.4]} 29... g5 {[%clk 0:00:33.8]} 30. Bxg5 {[%clk 0:00:59.8]} 30...
Qxe5 {[%clk 0:00:33.9]} 31. Qd2 {[%clk 0:00:59.6]} 31... Bd6 {[%clk 0:00:30.3]}
32. c3 {[%clk 0:00:57.2]} 32... Qg3 {[%clk 0:00:27.2]} 33. b4 {[%clk 0:00:52.2]}
33... Ne5 {[%clk 0:00:26]} 34. Bf4 {[%clk 0:00:50.5]} 34... Qxf4 {[%clk
0:00:25.4]} 0-1

[Event "*** Titled Tuesday Blitz"]
[Site "Chess.com"]
[Date "2021.03.02"]
[Round "5"]
[White "KarateBaby"]
[Black "Nikolaj_6"]
[Result "0-1"]
[WhiteElo "2197"]
[BlackElo "2671"]
[TimeControl "180+1"]
[EndTime "10:54:29 PST"]
[Termination "Nikolaj_6 won by resignation"]

1. e4 {[%clk 0:03:00.9]} 1... c5 {[%clk 0:02:57.9]} 2. Nc3 {[%clk 0:03:00.3]}
2... e6 {[%clk 0:02:55.6]} 3. Nf3 {[%clk 0:02:58.2]} 3... a6 {[%clk 0:02:54]} 4.
d4 {[%clk 0:02:54.9]} 4... cxd4 {[%clk 0:02:54.9]} 5. Nxd4 {[%clk 0:02:55.6]}
5... Nc6 {[%clk 0:02:54.4]} 6. g3 {[%clk 0:02:50.5]} 6... Qc7 {[%clk 0:02:53.7]}
7. Bg2 {[%clk 0:02:41.2]} 7... Nf6 {[%clk 0:02:52.1]} 8. O-O {[%clk 0:02:40.1]}
8... Nxd4 {[%clk 0:02:52]} 9. Qxd4 {[%clk 0:02:39.6]} 9... Bc5 {[%clk
0:02:50.3]} 10. Bf4 {[%clk 0:02:38.3]} 10... d6 {[%clk 0:02:50.3]} 11. Qd2
{[%clk 0:02:35.3]} 11... h6 {[%clk 0:02:50.2]} 12. Rad1 {[%clk 0:02:29]} 12...
e5 {[%clk 0:02:50.1]} 13. Be3 {[%clk 0:02:25.1]} 13... Be6 {[%clk 0:02:49.6]}
14. Bxc5 {[%clk 0:02:14.2]} 14... dxc5 {[%clk 0:02:50.5]} 15. f4 {[%clk
0:02:08]} 15... O-O {[%clk 0:02:40.1]} 16. Nd5 {[%clk 0:01:57.6]} 16... Bxd5
{[%clk 0:02:39.4]} 17. exd5 {[%clk 0:01:58.5]} 17... Qd6 {[%clk 0:02:34.9]} 18.
c4 {[%clk 0:01:54.5]} 18... exf4 {[%clk 0:02:25.3]} 19. Qxf4 {[%clk 0:01:49.7]}
19... Rad8 {[%clk 0:02:12.9]} 20. Qxd6 {[%clk 0:01:43.8]} 20... Rxd6 {[%clk
0:02:13.8]} 21. Rfe1 {[%clk 0:01:44.6]} 21... b5 {[%clk 0:02:13.3]} 22. b3
{[%clk 0:01:44]} 22... bxc4 {[%clk 0:02:09.8]} 23. bxc4 {[%clk 0:01:44.9]} 23...
Rb8 {[%clk 0:02:09.8]} 24. Rb1 {[%clk 0:01:41.3]} 24... Rdb6 {[%clk 0:02:00.3]}
25. Rxb6 {[%clk 0:01:14.8]} 25... Rxb6 {[%clk 0:02:01.2]} 26. Re2 {[%clk
0:01:15.7]} 26... Kf8 {[%clk 0:01:58.2]} 27. h3 {[%clk 0:01:12.1]} 27... Ne8
{[%clk 0:01:57.9]} 28. Re3 {[%clk 0:01:05.8]} 28... Nd6 {[%clk 0:01:57.5]} 29.
Bf1 {[%clk 0:01:02.7]} 29... Nf5 {[%clk 0:01:40.8]} 30. Rd3 {[%clk 0:00:50]}
30... Ke7 {[%clk 0:01:40.1]} 31. h4 {[%clk 0:00:43.4]} 31... Kd6 {[%clk
0:01:34]} 32. Bh3 {[%clk 0:00:38.6]} 32... Nd4 {[%clk 0:01:31.9]} 33. Bg2 {[%clk
0:00:24.4]} 33... g5 {[%clk 0:01:21.5]} 34. hxg5 {[%clk 0:00:19.9]} 34... hxg5
{[%clk 0:01:22.4]} 35. Be4 {[%clk 0:00:15.2]} 35... Rb1+ {[%clk 0:01:14.5]} 36.
Kf2 {[%clk 0:00:14.6]} 36... Rb2+ {[%clk 0:01:14.9]} 37. Kg1 {[%clk 0:00:14.3]}
37... Rxa2 {[%clk 0:01:11.9]} 38. Rd1 {[%clk 0:00:08.4]} 38... Ne2+ {[%clk
0:01:07.3]} 39. Kh1 {[%clk 0:00:02.4]} 39... Nxg3+ {[%clk 0:01:06.8]} 40. Kg1
{[%clk 0:00:03.3]} 0-1

[Event "*** Titled Tuesday Blitz"]
[Site "Chess.com"]
[Date "2021.03.02"]
[Round "5"]
[White "cstevens1"]
[Black "Bigfish1995"]
[Result "0-1"]
[WhiteElo "2627"]
[BlackElo "3124"]
[TimeControl "180+1"]
[EndTime "10:54:33 PST"]
[Termination "Bigfish1995 won by resignation"]

1. e4 {[%clk 0:03:00.9]} 1... c5 {[%clk 0:02:59.2]} 2. Nf3 {[%clk 0:03:01.2]}
2... d6 {[%clk 0:02:59.3]} 3. d4 {[%clk 0:03:01.7]} 3... cxd4 {[%clk 0:02:59.6]}
4. Nxd4 {[%clk 0:03:02.6]} 4... Nf6 {[%clk 0:02:59.9]} 5. f3 {[%clk 0:03:03.1]}
5... e5 {[%clk 0:02:54.8]} 6. Nb3 {[%clk 0:03:03.6]} 6... a5 {[%clk 0:02:55.2]}
7. a4 {[%clk 0:03:02.8]} 7... Be6 {[%clk 0:02:54.2]} 8. c4 {[%clk 0:03:02.3]}
8... Nbd7 {[%clk 0:02:53.8]} 9. Be3 {[%clk 0:03:02.5]} 9... Rc8 {[%clk
0:02:54.1]} 10. Na3 {[%clk 0:03:00.2]} 10... Be7 {[%clk 0:02:52.6]} 11. Qd2
{[%clk 0:02:58.5]} 11... b6 {[%clk 0:02:52.1]} 12. Be2 {[%clk 0:02:33.7]} 12...
d5 {[%clk 0:02:52]} 13. cxd5 {[%clk 0:01:35.6]} 13... Bb4 {[%clk 0:02:48]} 14.
dxe6 {[%clk 0:01:35.2]} 14... Bxd2+ {[%clk 0:02:47.4]} 15. Nxd2 {[%clk
0:01:36.1]} 15... fxe6 {[%clk 0:02:47.7]} 16. Ndc4 {[%clk 0:01:32.1]} 16... O-O
{[%clk 0:02:47.6]} 17. Nb5 {[%clk 0:01:30.1]} 17... Qe7 {[%clk 0:02:44.4]} 18.
O-O {[%clk 0:01:22.3]} 18... Rc6 {[%clk 0:02:43]} 19. Rfd1 {[%clk 0:01:19.2]}
19... Rfc8 {[%clk 0:02:37.3]} 20. b3 {[%clk 0:01:19.4]} 20... Rb8 {[%clk
0:02:32.5]} 21. Rd2 {[%clk 0:01:16.4]} 21... h6 {[%clk 0:02:30.7]} 22. Rad1
{[%clk 0:01:16.6]} 22... Kh7 {[%clk 0:02:30.5]} 23. g3 {[%clk 0:01:13.2]} 23...
Rf8 {[%clk 0:02:25.3]} 24. Kg2 {[%clk 0:01:11.8]} 24... Rb8 {[%clk 0:01:59.5]}
25. Kg1 {[%clk 0:01:10.1]} 25... Rcc8 {[%clk 0:01:58.8]} 26. Rd6 {[%clk
0:01:03.7]} 26... Rf8 {[%clk 0:01:48]} 27. Kg2 {[%clk 0:00:53.6]} 27... Rbc8
{[%clk 0:01:47]} 28. R1d2 {[%clk 0:00:38.6]} 28... Nc5 {[%clk 0:01:45]} 29. Nxb6
{[%clk 0:00:38.8]} 29... Nxb3 {[%clk 0:01:41.3]} 30. Nxc8 {[%clk 0:00:36.8]}
30... Rxc8 {[%clk 0:01:42.2]} 31. Rb2 {[%clk 0:00:26.5]} 31... Nd4 {[%clk
0:01:41.4]} 32. Bxd4 {[%clk 0:00:23.1]} 32... exd4 {[%clk 0:01:41.7]} 33. Rxd4
{[%clk 0:00:23.7]} 33... e5 {[%clk 0:01:40.3]} 34. Rd6 {[%clk 0:00:21.7]} 34...
Rc1 {[%clk 0:01:39.8]} 35. Rbd2 {[%clk 0:00:20.1]} 35... Qf8 {[%clk 0:01:37.5]}
36. Bd1 {[%clk 0:00:16.9]} 36... Qf7 {[%clk 0:01:29.1]} 37. R6d3 {[%clk
0:00:10]} 37... Qc4 {[%clk 0:01:27]} 38. Nd6 {[%clk 0:00:09.4]} 38... Qb4 {[%clk
0:01:25.6]} 39. Nf5 {[%clk 0:00:07.1]} 39... Nxe4 {[%clk 0:01:20]} 40. fxe4
{[%clk 0:00:06.5]} 40... Qxe4+ {[%clk 0:01:20.2]} 41. Rf3 {[%clk 0:00:04.1]}
41... Rxd1 {[%clk 0:01:20.2]} 42. Rxd1 {[%clk 0:00:04]} 42... Qe2+ {[%clk
0:01:20.4]} 43. Rf2 {[%clk 0:00:04.5]} 43... Qxd1 {[%clk 0:01:20.9]} 0-1